Workbook

Sheet OVERALL RATING
B3: =D29 -> 0 | C3: =E29 -> 0
C7: Clean Air Index | E7: Energy Efficiency Index
C8: 32.6 | E8: 40.5
C9: ='Clean Air'!B6 -> WLTC-cold | D9: ='Clean Air'!F12 -> 9 | E9: Energy Consumption (WLTC-cold) | F9: =Efficiency!F18 -> 10
C10: ='Clean Air'!B13 -> WLTC-warm | D10: ='Clean Air'!F19 -> 3 | E10: Energy Consumption (WLTC-warm/eco/sport) | F10: =SUM(Efficiency!F19:F21) -> 9
C11: ='Clean Air'!B20 -> WLTC -eco | D11: ='Clean Air'!F26 -> 3 | E11: Energy Consumption 1) (PEMS+) | F11: =IF(Efficiency!F22=0,"-",Efficiency!F22) -> -
C12: ='Clean Air'!B27 -> WLTC -sport | D12: ='Clean Air'!F33 -> 3 | E12: Energy Consumption (BAB130) | F12: =Efficiency!F23 -> 10
C13: ='Clean Air'!B36 -> PEMS+ | D13: ='Clean Air'!F42 -> 7 | E13: Energy Consumption 1) (suppl PEMS) | F13: =IF(Efficiency!F24=0,"-",Efficiency!F24) -> -
C14: ='Clean Air'!B45 -> BAB130 | D14: ='Clean Air'!F51 -> 9 | E14: Driving Range 1) | F14: =IF(Efficiency!F46=0,"-",Efficiency!F46) -> -
C15: suppl. PEMS 1) | E15: Driving Resistance 1) | F15: =IF(Efficiency!F47=0,"-",Efficiency!F47) -> -
B16: Total Score | C16: ='Clean Air'!F65 -> 34 | E16: =Efficiency!E49 -> 29
B17: Max Points available | C17: ='Clean Air'!D65 -> 34 | E17: =Efficiency!D49 -> 34
B18: Index | C18: =10*C16/C17 -> 10 | E18: =10*E16/E17 -> 8.529411765
B19: RATING REQUIREMENTS 2018
C20: 8 | E20: 7.5 | G20: =IF(AND($C$18:$F$18>=C20:F20),1,0) -> 1
C21: 7 | E21: 6 | G21: =IF(AND($C$18:$F$18>=C21:F21),1,0) -> 1
C22: 6 | E22: 4.5 | G22: =IF(AND($C$18:$F$18>=C22:F22),1,0) -> 1
C23: 5 | E23: 3 | G23: =IF(AND($C$18:$F$18>=C23:F23),1,0) -> 1
C24: 4 | E24: 1.5 | G24: =IF(AND($C$18:$F$18>=C24:F24),1,0) -> 1
B26: 1): test not operational yet | G26: =SUM(G20:G24) -> 5
C28: TEST DETAILS
C29: Vehicle | D29: =SPECS!B1 -> 0 | E29: =SPECS!B2 -> 0
C30: Specs (cc/kW) | D30: =SPECS!B9 -> 0 | E30: =SPECS!B10 -> 0
C31: Applies to VIN: | D31: =SPECS!B3 -> 0
C32: Powerunit(s) | D32: =IF(Petrol,"petrol",IF(Diesel,"diesel", " ")) -> petrol | E32: =IF(Electric,"electric"," ") -> 
C33: Actual mass (kg) | D33: =SPECS!B14 -> 0
C34: Average consumption (in WLTC tests)
C35: fuel | D35: =IF(AVERAGE(Efficiency!M18:M21)>0,AVERAGE(Efficiency!M18:M21),"n.a.") -> n.a. | E35: l/100km
C36: electric energy | D36: =IF(AVERAGE(Efficiency!P18:P21)>0,AVERAGE(Efficiency!P18:P21),"n.a.") -> n.a. | E36: kWh/100km
C37: Worst case consumption (suppl PEMS test) 1)
C38: fuel | D38: n.a. | E38: l/100km
C39: electric energy | D39: n.a. | E39: kWh/100km

Sheet Clean Air
Q1: 1
B2: 1. Pollutants | E2: Test Results | G2: Limits | I2: Max score
E4: Value | F4: Points | G4: lower | H4: upper
B5: 1.1 | C5: Regulatory Tailpipe Emission Lab Tests
B6: WLTC-cold | C6: max points | D6: =SUM(I7:I11) -> 9
B7: (cold1) | C7: HC | D7: mg/km | E7: ='Lab results'!$C$10 -> 0 | F7: =Sliding_Scale(E7,G7,H7,I7,0,Slide_Type) -> 2 | G7: =limits!$D$13 -> 45 | H7: =IF(Petrol,limits!C$5,IF(Diesel,limits!D$5,0)) -> 100 | I7: 2
C8: NOx | D8: mg/km | E8: ='Lab results'!$F$10 -> 0 | F8: =Sliding_Scale(E8,G8,H8,I8,0,Slide_Type) -> 3 | G8: =limits!$D$14 -> 30 | H8: =IF(Petrol,limits!C$6,IF(Diesel,limits!D$6,0)) -> 60 | I8: 3
C9: CO | D9: mg/km | E9: ='Lab results'!$B$10 -> 0 | F9: =Sliding_Scale(E9,G9,H9,I9,0,Slide_Type) -> 1 | G9: =limits!$D$15 -> 250 | H9: =IF(Petrol,limits!C$7,IF(Diesel,limits!D$7,0)) -> 1000 | I9: 1
C10: PM | D10: mg/km | E10: ='Lab results'!$G$10 -> 0 | F10: =Sliding_Scale(E10,G10,H10,I10,0,Slide_Type) -> 0 | G10: =limits!$D$16 -> 2.25 | H10: =IF(Petrol,limits!C$8,IF(Diesel,limits!D$8,0)) -> 4.5 | I10: 0
C11: PN | E11: ='Lab results'!$H$10 -> 0 | F11: =Sliding_Scale(E11,G11,H11,I11,0,Slide_Type) -> 3 | G11: =limits!$D$17 -> 60000000000 | H11: =IF(Petrol,limits!C$9,IF(Diesel,limits!D$9,0)) -> 600000000000 | I11: 3
B12: total | F12: =IF(OR(E7:E11>limits!$E$5:$E$9),0,MAX(SUM('Clean Air'!F7:F11),0)) -> 9
B13: WLTC-warm | C13: max points | D13: =SUM(I14:I18) -> 3
B14: (warm) | C14: HC | D14: mg/km | E14: ='Lab results'!$C$20 -> 0 | F14: =Sliding_Scale(E14,G14,H14,I14,0,Slide_Type) -> 0.6666666667 | G14: =limits!$D$13 -> 45 | H14: =IF(Petrol,limits!C$5,IF(Diesel,limits!D$5,0)) -> 100 | I14: =2/3 -> 0.6666666667
C15: NOx | D15: mg/km | E15: ='Lab results'!$F$20 -> 0 | F15: =Sliding_Scale(E15,G15,H15,I15,0,Slide_Type) -> 1 | G15: =limits!$D$14 -> 30 | H15: =IF(Petrol,limits!C$6,IF(Diesel,limits!D$6,0)) -> 60 | I15: =3/3 -> 1
C16: CO | D16: mg/km | E16: ='Lab results'!$B$20 -> 0 | F16: =Sliding_Scale(E16,G16,H16,I16,0,Slide_Type) -> 0.3333333333 | G16: =limits!$D$15 -> 250 | H16: =IF(Petrol,limits!C$7,IF(Diesel,limits!D$7,0)) -> 1000 | I16: =1/3 -> 0.3333333333
C17: PM | D17: mg/km | E17: ='Lab results'!$G$20 -> 0 | F17: =Sliding_Scale(E17,G17,H17,I17,0,Slide_Type) -> 0 | G17: =limits!$D$16 -> 2.25 | H17: =IF(Petrol,limits!C$8,IF(Diesel,limits!D$8,0)) -> 4.5 | I17: 0
C18: PN | E18: ='Lab results'!$H$20 -> 0 | F18: =Sliding_Scale(E18,G18,H18,I18,0,Slide_Type) -> 1 | G18: =limits!$D$17 -> 60000000000 | H18: =IF(Petrol,limits!C$9,IF(Diesel,limits!D$9,0)) -> 600000000000 | I18: =3/3 -> 1
B19: total | F19: =IF(OR(E14:E18>limits!$E$5:$E$9),0,MAX(SUM('Clean Air'!F14:F18),0)) -> 3
B20: WLTC -eco | C20: max points | D20: =SUM(I21:I25) -> 3
B21: (warm) | C21: HC | D21: mg/km | E21: ='Lab results'!$C$30 -> 0 | F21: =Sliding_Scale(E21,G21,H21,I21,0,Slide_Type) -> 0.6666666667 | G21: =limits!$D$13 -> 45 | H21: =IF(Petrol,limits!C$5,IF(Diesel,limits!D$5,0)) -> 100 | I21: =2/3 -> 0.6666666667
C22: NOx | D22: mg/km | E22: ='Lab results'!$F$30 -> 0 | F22: =Sliding_Scale(E22,G22,H22,I22,0,Slide_Type) -> 1 | G22: =limits!$D$14 -> 30 | H22: =IF(Petrol,limits!C$6,IF(Diesel,limits!D$6,0)) -> 60 | I22: =3/3 -> 1
C23: CO | D23: mg/km | E23: ='Lab results'!$B$30 -> 0 | F23: =Sliding_Scale(E23,G23,H23,I23,0,Slide_Type) -> 0.3333333333 | G23: =limits!$D$15 -> 250 | H23: =IF(Petrol,limits!C$7,IF(Diesel,limits!D$7,0)) -> 1000 | I23: =1/3 -> 0.3333333333
C24: PM | D24: mg/km | E24: ='Lab results'!$G$30 -> 0 | F24: =Sliding_Scale(E24,G24,H24,I24,0,Slide_Type) -> 0 | G24: =limits!$D$16 -> 2.25 | H24: =IF(Petrol,limits!C$8,IF(Diesel,limits!D$8,0)) -> 4.5 | I24: 0
C25: PN | E25: ='Lab results'!$H$30 -> 0 | F25: =Sliding_Scale(E25,G25,H25,I25,0,Slide_Type) -> 1 | G25: =limits!$D$17 -> 60000000000 | H25: =IF(Petrol,limits!C$9,IF(Diesel,limits!D$9,0)) -> 600000000000 | I25: =3/3 -> 1
B26: total | F26: =IF(OR(E21:E25>limits!$E$5:$E$9),0,MAX(SUM('Clean Air'!F21:F25),0)) -> 3
B27: WLTC -sport | C27: max points | D27: =SUM(I28:I32) -> 3
C28: HC | D28: mg/km | E28: ='Lab results'!$C$40 -> 0 | F28: =Sliding_Scale(E28,G28,H28,I28,0,Slide_Type) -> 0.6666666667 | G28: =limits!$D$13 -> 45 | H28: =IF(Petrol,limits!C$5,IF(Diesel,limits!D$5,0)) -> 100 | I28: =2/3 -> 0.6666666667
C29: NOx | D29: mg/km | E29: ='Lab results'!$F$40 -> 0 | F29: =Sliding_Scale(E29,G29,H29,I29,0,Slide_Type) -> 1 | G29: =limits!$D$14 -> 30 | H29: =IF(Petrol,limits!C$6,IF(Diesel,limits!D$6,0)) -> 60 | I29: =3/3 -> 1
C30: CO | D30: mg/km | E30: ='Lab results'!$B$40 -> 0 | F30: =Sliding_Scale(E30,G30,H30,I30,0,Slide_Type) -> 0.3333333333 | G30: =limits!$D$15 -> 250 | H30: =IF(Petrol,limits!C$7,IF(Diesel,limits!D$7,0)) -> 1000 | I30: =1/3 -> 0.3333333333
C31: PM | D31: mg/km | E31: ='Lab results'!$G$40 -> 0 | F31: =Sliding_Scale(E31,G31,H31,I31,0,Slide_Type) -> 0 | G31: =limits!$D$16 -> 2.25 | H31: =IF(Petrol,limits!C$8,IF(Diesel,limits!D$8,0)) -> 4.5 | I31: 0
C32: PN | E32: ='Lab results'!$H$40 -> 0 | F32: =Sliding_Scale(E32,G32,H32,I32,0,Slide_Type) -> 1 | G32: =limits!$D$17 -> 60000000000 | H32: =IF(Petrol,limits!C$9,IF(Diesel,limits!D$9,0)) -> 600000000000 | I32: =3/3 -> 1
B33: total | F33: =IF(OR(E28:E32>limits!E5:E9),0,MAX(SUM('Clean Air'!F28:F32),0)) -> 3
B35: 1.2 | C35: Regulatory performance PEMS+
B36: PEMS+ | C36: max points | D36: =SUM(I37:I41) -> 7
C37: HC | D37: mg/km | E37: ='PEMS results'!F27 -> 0 | F37: =Sliding_Scale(E37,G37,H37,I37,0,Slide_Type) -> 0 | G37: =limits!$J$13 -> 45 | H37: =IF(Petrol,limits!H$5,IF(Diesel,limits!I$5,0)) -> 150 | I37: 0
C38: NOx | D38: mg/km | E38: ='PEMS results'!$D$27 -> 0 | F38: =Sliding_Scale(E38,G38,H38,I38,0,Slide_Type) -> 3 | G38: =limits!$J$14 -> 30 | H38: =IF(Petrol,limits!H$6,IF(Diesel,limits!I$6,0)) -> 90 | I38: 3
C39: CO | D39: mg/km | E39: ='PEMS results'!$C$27 -> 0 | F39: =Sliding_Scale(E39,G39,H39,I39,0,Slide_Type) -> 1 | G39: =limits!$J$15 -> 250 | H39: =IF(Petrol,limits!H$7,IF(Diesel,limits!I$7,0)) -> 1500 | I39: 1
C40: PM | D40: mg/km | F40: =Sliding_Scale(E40,G40,H40,I40,0,Slide_Type) -> 0 | G40: =limits!$J$16 -> 2.25 | H40: =IF(Petrol,limits!H$8,IF(Diesel,limits!I$8,0)) -> 6.75 | I40: 0
C41: PN | E41: ='PEMS results'!$E$27 -> 0 | F41: =Sliding_Scale(E41,G41,H41,I41,0,Slide_Type) -> 3 | G41: =limits!$J$17 -> 60000000000 | H41: =IF(Petrol,limits!H$9,IF(Diesel,limits!I$9,0)) -> 900000000000 | I41: 3
B42: Regulatory performance PEMS+ | F42: =IF(OR(E37:E41>limits!$J$5:$J$9),0,MAX(SUM('Clean Air'!F37:F41),0)) -> 7
B44: 1.3 | C44: Robustness
B45: BAB130 | C45: max points | D45: =SUM(I46:I50) -> 9
C46: HC | D46: mg/km | E46: ='Lab results'!$C$48 -> 0 | F46: =Sliding_Scale(E46,G46,H46,I46,0,Slide_Type) -> 2 | G46: =limits!$D$13 -> 45 | H46: =IF(Petrol,limits!C$5,IF(Diesel,limits!D$5,0)) -> 100 | I46: 2
C47: NOx | D47: mg/km | E47: ='Lab results'!$F$48 -> 0 | F47: =Sliding_Scale(E47,G47,H47,I47,0,Slide_Type) -> 3 | G47: =limits!$D$14 -> 30 | H47: =IF(Petrol,limits!C$6,IF(Diesel,limits!D$6,0)) -> 60 | I47: 3
C48: CO | D48: mg/km | E48: ='Lab results'!$B$48 -> 0 | F48: =Sliding_Scale(E48,G48,H48,I48,0,Slide_Type) -> 1 | G48: =limits!$D$15 -> 250 | H48: =IF(Petrol,limits!C$7,IF(Diesel,limits!D$7,0)) -> 1000 | I48: 1
C49: PM | D49: mg/km | E49: ='Lab results'!$G$48 -> 0 | F49: =Sliding_Scale(E49,G49,H49,I49,0,Slide_Type) -> 0 | G49: =limits!$D$16 -> 2.25 | H49: =IF(Petrol,limits!C$7,IF(Diesel,limits!D$7,0)) -> 1000 | I49: 0
C50: PN | E50: ='Lab results'!$H$48 -> 0 | F50: =Sliding_Scale(E50,G50,H50,I50,0,Slide_Type) -> 3 | G50: =limits!$D$17 -> 60000000000 | H50: =IF(Petrol,limits!C$9,IF(Diesel,limits!D$9,0)) -> 600000000000 | I50: 3
F51: =IF(OR(E46:E50>limits!$E$5:$E$9,ISERROR(F46:F50)),0,MAX(SUM('Clean Air'!F46:F50),0)) -> 9
B52: suppl. PEMS 1) | C52: max points | D52: =SUM(I53:I57) -> 0
C53: HC | D53: mg/km | E53: ='PEMS results'!$F$13 -> 0 | F53: =Sliding_Scale(E53,G53,H53,I53,0,Slide_Type) -> 0 | G53: =limits!$J$13 -> 45 | H53: =IF(Petrol,limits!H$5,IF(Diesel,limits!I$5,0)) -> 150 | I53: 0
C54: NOx | D54: mg/km | E54: ='PEMS results'!$D$13 -> 0 | F54: =Sliding_Scale(E54,G54,H54,I54,0,Slide_Type) -> 0 | G54: =limits!$J$14 -> 30 | H54: =IF(Petrol,limits!H$6,IF(Diesel,limits!I$6,0)) -> 90 | I54: 0
C55: CO | D55: mg/km | E55: ='PEMS results'!$C$13 -> 0 | F55: =Sliding_Scale(E55,G55,H55,I55,0,Slide_Type) -> 0 | G55: =limits!$J$15 -> 250 | H55: =IF(Petrol,limits!H$7,IF(Diesel,limits!I$7,0)) -> 1500 | I55: 0
C56: PM | D56: mg/km | F56: =Sliding_Scale(E56,G56,H56,I56,0,Slide_Type) -> 0 | G56: =limits!$J$16 -> 2.25 | H56: =IF(Petrol,limits!H$8,IF(Diesel,limits!I$8,0)) -> 6.75 | I56: 0
C57: PN | E57: ='PEMS results'!$E$13 -> 0 | F57: =Sliding_Scale(E57,G57,H57,I57,0,Slide_Type) -> 0 | G57: =limits!$J$17 -> 60000000000 | H57: =IF(Petrol,limits!H$9,IF(Diesel,limits!I$9,0)) -> 900000000000 | I57: 0
F58: 0
B59: 1): test not operational yet
B61: SUMMARY
B62: =B5 -> 1.1 | C62: =C5 -> Regulatory Tailpipe Emission Lab Tests | D62: =SUM(D6,D13,D20,D27) -> 18 | F62: =SUM(F12,F19,F26,F33) -> 18
B63: =B35 -> 1.2 | C63: =C35 -> Regulatory performance PEMS+ | D63: =SUM(D36) -> 7 | F63: =SUM(F42) -> 7
B64: =B44 -> 1.3 | C64: =C44 -> Robustness | D64: =SUM(D45,D52) -> 9 | F64: =SUM(F51,F58) -> 9
B65: TOTAL | D65: =SUM(D62:D64) -> 34 | F65: =SUM(F62:F64) -> 34
B69: TOTAL SCORE POLLUTANTS | D69: (0-10pts) | F69: =10*F65/D65 -> 10

Sheet Efficiency
B2: 2. Efficiency | E2: Test Results | G2: Limits | I2: Max score
E4: Value | F4: Points | G4: lower | H4: upper
B6: 2.1 | C6: Test cycle measurements
B7: 2.1.1 | C7: CO2 emissions
C8: max points | D8: =IF(SPECS!H4=1,SUM(I9:I13),IF(SPECS!H6=1,SUM(I9:I13),0)) -> 0
B9: Lab tests | C9: WLTC | D9: mg/km | E9: ='Lab results'!$I$10 -> 0 | F9: =IF(E9>=H9,0,IF(E9<=G9, I9,I9-(E9-G9)/(H9-G9)*I9)) -> 0 | G9: 60 | H9: 150 | I9: 0
C10: WLTC warm | D10: mg/km | E10: ='Lab results'!$I$20 -> 0 | F10: =IF(E10>=H10,0,IF(E10<=G10, I10,I10-(E10-G10)/(H10-G10)*I10)) -> 0 | G10: 60 | H10: 150 | I10: 0
B11: PEMS | C11: PEMS+ | D11: mg/km | E11: ='PEMS results'!B27 -> 0 | F11: =IF(E11>=H11,0,IF(E11<=G11, I11,I11-(E11-G11)/(H11-G11)*I11)) -> 0 | G11: 60 | H11: 150 | I11: 0
B12: robustness | C12: Bab130 | D12: mg/km | E12: ='Lab results'!$I$48 -> 0 | F12: 0 | G12: 60 | H12: 150 | I12: 0
C13: suppl. PEMS | D13: mg/km | E13: ='PEMS results'!B13 -> 0 | F13: 0 | G13: 60 | H13: 150 | I13: 0
B14: total | F14: =IF(D8>0,SUM(F9:F13), "n/a") -> n/a
B16: 2.1.2 | C16: Energy Consumption (total) | K16: 2.1.2.1 | N16: 2.1.2.2
C17: max points | D17: =I25 -> 29 | K17: Fuel Consumption (ICE) | N17: Energy Consumption (EV)
B18: Lab tests | C18: WLTC | D18: kWh/100km | E18: =IF(Petrol,Efficiency!M18*limits!$C$22,IF(Diesel,Efficiency!M18*limits!$C$23,0))+P18 -> 0 | F18: =IF(E18>=H18,0,IF(E18<=G18, I18,I18-(E18-G18)/(H18-G18)*I18)) -> 10 | G18: 40 | H18: 90 | I18: 10 | K18: WLTC-cold1 | L18: l/100km | M18: =IF(OR(Petrol,Diesel),'Lab results'!J10,0) -> 0 | N18: WLTC-cold1 | O18: kWh/100km | P18: =IF(Electric,'Lab results'!W10,0) -> 0
C19: WLTC-warm | D19: kWh/100km | E19: =IF(Petrol,Efficiency!M19*limits!$C$22,IF(Diesel,Efficiency!M19*limits!$C$23,0))+P19 -> 0 | F19: =IF(E19>=H19,0,IF(E19<=G19, I19,I19-(E19-G19)/(H19-G19)*I19)) -> 3 | G19: 40 | H19: 90 | I19: 3 | K19: WLTC-warm | L19: l/100km | M19: =IF(OR(Petrol,Diesel),'Lab results'!J20,"") -> 0 | N19: WLTC-warm | O19: kWh/100km | P19: =IF(Electric,'Lab results'!W20,0) -> 0
C20: WLTC -eco | D20: kWh/100km | E20: =IF(Petrol,Efficiency!M20*limits!$C$22,IF(Diesel,Efficiency!M20*limits!$C$23,0))+P20 -> 0 | F20: 3 | G20: 40 | H20: 90 | I20: 3 | K20: WLTC -eco | L20: l/100km | M20: =IF(OR(Petrol,Diesel),'Lab results'!J30,"") -> 0 | N20: WLTC -eco | O20: kWh/100km | P20: =IF(Electric,'Lab results'!W30,0) -> 0
C21: WLTC-sport | D21: kWh/100km | E21: =IF(Petrol,Efficiency!M21*limits!$C$22,IF(Diesel,Efficiency!M21*limits!$C$23,0))+P21 -> 0 | F21: =IF(E21>=H21,0,IF(E21<=G21, I21,I21-(E21-G21)/(H21-G21)*I21)) -> 3 | G21: 40 | H21: 90 | I21: 3 | K21: WLTC-sport | L21: l/100km | M21: =IF(OR(Petrol,Diesel),'Lab results'!$J$40,"") -> 0 | N21: WLTC-sport | O21: kWh/100km | P21: =IF(Electric,'Lab results'!W40,0) -> 0
B22: PEMS | C22: PEMS+ | D22: kWh/100km | E22: =IF(Petrol,Efficiency!M22*limits!$C$22,IF(Diesel,Efficiency!M22*limits!$C$23,0))+P22 -> 0 | G22: 40 | H22: 90 | I22: 0 | K22: PEMS+ | L22: l/100km | N22: PEMS+ | O22: kWh/100km
B23: robustness | C23: Bab130 | D23: kWh/100km | E23: =IF(Petrol,Efficiency!M23*limits!$C$22,IF(Diesel,Efficiency!M23*limits!$C$23,0))+P23 -> 0 | F23: 10 | G23: 40 | H23: 90 | I23: 10 | K23: Bab130 | L23: l/100km | M23: =IF(OR(Petrol,Diesel),'Lab results'!$J$48,"") -> 0 | N23: Bab130 | O23: kWh/100km | P23: =IF(Electric,'Lab results'!W48,0) -> 0
C24: suppl. PEMS | D24: kWh/100km | E24: =IF(Petrol,Efficiency!M24*limits!$C$22,IF(Diesel,Efficiency!M24*limits!$C$23,0))+P24 -> 0 | F24: 0 | G24: 40 | H24: 90 | I24: 0 | K24: suppl. PEMS | L24: l/100km | N24: suppl. PEMS | O24: kWh/100km
B25: total | F25: =SUM(F18:F24) -> 29 | I25: =SUM(I18:I24) -> 29
B27: 2.2 | C27: Driving Range 1)
C28: max points | D28: =SUM(I29:I29) -> 0
D29: km | F29: =IF(E29>=H29,$I$29,IF(E29<=G29,0,(E29-G29)/(H29-G29)*I29)) -> 0 | G29: 800 | H29: 1500 | I29: 0
B30: total | F30: =SUM(F29:F29) -> 0
B33: 2.3 | C33: Driving Resistance 1)
C34: max points | D34: =I38 -> 5 | I34: 5
C35: vehicle mass | D35: kg | I35: 0
C36: rolling resistance | D36: N | I36: 0
C37: Aerodynamic Drag | D37: N/km | I37: 0
B38: total | F38: =SUM(F37:F37) -> 0 | I38: =SUM(I34:I37) -> 5
B40: 1): test not operational yet
B42: SUMMARY | D42: max points | E42: scored points
B43: 2.1 | C43: Test cycle measuments
B44: =B7 -> 2.1.1 | C44: =C7 -> CO2 emissions | D44: =D8 -> 0 | E44: =F14 -> n/a
B45: =B16 -> 2.1.2 | C45: =C16 -> Energy Consumption (total) | D45: =D17 -> 29 | E45: =F25 -> 29
B46: =B27 -> 2.2 | C46: =C27 -> Driving Range 1) | D46: =D28 -> 0 | E46: =F30 -> 0
B47: =B33 -> 2.3 | C47: =C33 -> Driving Resistance 1) | D47: =D34 -> 5 | E47: =F38 -> 0
B49: TOTAL | D49: =SUM(D44:D47) -> 34 | E49: =SUM(E44:E47) -> 29
B52: TOTAL SCORE EFFICIENCY | E52: =10*E49/D49 -> 8.529411765 | F52: (0-10pts)

Sheet limits
B1: Pollutants
B3: u p p e r l i m i t s (labtests) | E3: gross excess | G3: u p p e r l i m i t s (PEMS tests) | J3: gross excess
C4: petrol | D4: diesel | E4: =IF(Petrol,"petrol",IF(Diesel,"diesel","n.a")) -> petrol | H4: petrol | I4: diesel | J4: =IF(Petrol,"petrol",IF(Diesel,"diesel","n.a")) -> petrol
B5: HC | C5: 100 | D5: 90 | E5: =IF(Petrol,1.5*C5,IF(Diesel,1.5*D5,"n.a.")) -> 150 | G5: HC | H5: =C5*$J$10 -> 150 | I5: 135 | J5: =IF(Petrol,1.5*H5,IF(Diesel,1.5*I5,"n.a.")) -> 225
B6: NOx | C6: 60 | D6: 80 | E6: =IF(Petrol,1.5*C6,IF(Diesel,1.5*D6,"n.a.")) -> 90 | G6: NOx | H6: 90 | I6: 120 | J6: =IF(Petrol,1.5*H6,IF(Diesel,1.5*I6,"n.a.")) -> 135
B7: CO | C7: 1000 | D7: 500 | E7: =IF(Petrol,1.5*C7,IF(Diesel,1.5*D7,"n.a.")) -> 1500 | G7: CO | H7: 1500 | I7: 750 | J7: =IF(Petrol,1.5*H7,IF(Diesel,1.5*I7,"n.a.")) -> 2250
B8: PM | C8: 4.5 | D8: 4.5 | E8: =IF(Petrol,1.5*C8,IF(Diesel,1.5*D8,"n.a.")) -> 6.75 | G8: PM | H8: 6.75 | I8: 6.75 | J8: =IF(Petrol,1.5*H8,IF(Diesel,1.5*I8,"n.a.")) -> 10.125
B9: PN | C9: 600000000000 | D9: 600000000000 | E9: 6000000000000 | G9: PN | H9: 900000000000 | I9: 900000000000 | J9: 6000000000000
I10: CF: | J10: 1.5
B11: l o w e r l i m i t s (labtests) | H11: l o w e r l i m i t s (PEMS tests)
B12: petrol AND diesel | H12: petrol AND diesel
B13: HC | D13: =MIN(C5:D5)/2 -> 45 | H13: HC | J13: =D13 -> 45
B14: NOx | D14: =MIN(C6:D6)/2 -> 30 | H14: NOx | J14: =D14 -> 30
B15: CO | D15: 250 | H15: CO | J15: =D15 -> 250
B16: PM | D16: 2.25 | H16: PM | J16: =D16 -> 2.25
B17: PN | D17: =MIN(C9:D9)/10 -> 60000000000 | H17: PN | J17: =D17 -> 60000000000
B20: Energy / fuel consumption
B21: multiplication fuel (l/100km) -> energy (kWh/100km)
B22: Petrol | C22: 8.670909091
B23: Diesel | C23: 9.86097561
B24: Electric | C24: 1

Sheet SPECS
A1: Brand | L1: Petrol | M1: =IF(ICE_Type=1,TRUE,FALSE) -> TRUE | N1: 1
A2: Model: | L2: Diesel | M2: =IF(ICE_Type=2,TRUE,FALSE) -> FALSE | N2: FALSE
A3: Applies to VIN: | L3: Petrol Hybrid | M3: FALSE
A4: VIN tested vehicle: | L4: Diesel Hybrid | M4: FALSE
A5: Emission class and character: | L5: Electric | M5: =IF(N2,TRUE,FALSE) -> FALSE
A6: Country of registration:
A7: Model:
A8: Engine code:
A9: Engine volume (cm3):
A10: Engine power (kW):
A11: Gearbox type (auto/manual):
A12: Drive axle (FWD/AWD/RWD):
A13: Tyre size (front and rear if different):
A14: Vehicle mass (kg):

Sheet Lab results
A2: WLTC-cold1
A3: Mass Emissions (Bag results)
A4: Phase | B4: CO | C4: THC | D4: CH4 | E4: NMHC | F4: NOx | G4: PM | H4: PN | I4: CO2 | J4: Fuel consumption | K4: ΔERESS (cf A6 Ap2 3.6) | L4: ΔCO2 (cf A6 Ap2 4.4) | M4: RCB Corrected CO2 | N4: CO2 | O4: RCB Corrected CO2 | P4: CO | Q4: THC | R4: CH4 | S4: NMHC | T4: NOx | U4: PM | V4: PN | W4: Energy Consum.
A5: Unit | B5: mg/km | C5: mg/km | D5: mg/km | E5: mg/km | F5: mg/km | G5: mg/km | H5: #/km | I5: g/km | J5: L/100km | K5: - | L5: g | M5: g/km | N5: g/kWh | O5: g/kWh | P5: mg/kWh | Q5: mg/kWh | R5: mg/kWh | S5: mg/kWh | T5: mg/kWh | U5: mg/kWh | V5: #/kWh | W5: kWh
A6: 1
A7: 2
A8: 3
A9: 4
A10: Global | W10: 123
A12: WLTC-warm
A13: Mass Emissions (Bag results)
A14: Phase | B14: CO | C14: THC | D14: CH4 | E14: NMHC | F14: NOx | G14: PM | H14: PN | I14: CO2 | J14: Fuel consumption | K14: ΔERESS (cf A6 Ap2 3.6) | L14: ΔCO2 (cf A6 Ap2 4.4) | M14: RCB Corrected CO2 | N14: CO2 | O14: RCB Corrected CO2 | P14: CO | Q14: THC | R14: CH4 | S14: NMHC | T14: NOx | U14: PM | V14: PN | W14: Energy Consum.
A15: Unit | B15: mg/km | C15: mg/km | D15: mg/km | E15: mg/km | F15: mg/km | G15: mg/km | H15: #/km | I15: g/km | J15: L/100km | K15: - | L15: g | M15: g/km | N15: g/kWh | O15: g/kWh | P15: mg/kWh | Q15: mg/kWh | R15: mg/kWh | S15: mg/kWh | T15: mg/kWh | U15: mg/kWh | V15: #/kWh | W15: kWh
A16: 1
A17: 2
A18: 3
A19: 4
A20: Global | W20: 123
A22: WLTC-warm - eco
A23: Mass Emissions (Bag results)
A24: Phase | B24: CO | C24: THC | D24: CH4 | E24: NMHC | F24: NOx | G24: PM | H24: PN | I24: CO2 | J24: Fuel consumption | K24: ΔERESS (cf A6 Ap2 3.6) | L24: ΔCO2 (cf A6 Ap2 4.4) | M24: RCB Corrected CO2 | N24: CO2 | O24: RCB Corrected CO2 | P24: CO | Q24: THC | R24: CH4 | S24: NMHC | T24: NOx | U24: PM | V24: PN
A25: Unit | B25: mg/km | C25: mg/km | D25: mg/km | E25: mg/km | F25: mg/km | G25: mg/km | H25: #/km | I25: g/km | J25: L/100km | K25: - | L25: g | M25: g/km | N25: g/kWh | O25: g/kWh | P25: mg/kWh | Q25: mg/kWh | R25: mg/kWh | S25: mg/kWh | T25: mg/kWh | U25: mg/kWh | V25: #/kWh
A26: 1
A27: 2
A28: 3
A29: 4
A30: Global
A32: WLTC-sport
A33: Mass Emissions (Bag results)
A34: Phase | B34: CO | C34: THC | D34: CH4 | E34: NMHC | F34: NOx | G34: PM | H34: PN | I34: CO2 | J34: Fuel consumption | K34: ΔERESS | L34: ΔCO2 | M34: RCB Corrected CO2 | N34: CO2 | O34: RCB Corrected CO2 | P34: CO | Q34: THC | R34: CH4 | S34: NMHC | T34: NOx | U34: PM | V34: PN | W34: Energy
A35: Unit | B35: mg/km | C35: mg/km | D35: mg/km | E35: mg/km | F35: mg/km | G35: mg/km | H35: #/km | I35: g/km | J35: L/100km | K35: - | L35: g | M35: g/km | N35: g/kWh | O35: g/kWh | P35: mg/kWh | Q35: mg/kWh | R35: mg/kWh | S35: mg/kWh | T35: mg/kWh | U35: mg/kWh | V35: #/kWh | W35: kWh
A36: 1
A37: 2
A38: 3
A39: 4
A40: Global | W40: 123
A42: BAB130
A43: Mass Emissions (Bag results)
A44: Phase | B44: CO | C44: THC | D44: CH4 | E44: NMHC | F44: NOx | G44: PM | H44: PN | I44: CO2 | J44: Fuel consumption | K44: CO2 | L44: CO | M44: THC | N44: CH4 | O44: NMHC | P44: NOx | Q44: PM | R44: PN | W44: Energy Consum.
A45: Unit | B45: mg/km | C45: mg/km | D45: mg/km | E45: mg/km | F45: mg/km | G45: mg/km | H45: #/km | I45: g/km | J45: L/100km | K45: g/kWh | L45: mg/kWh | M45: mg/kWh | N45: mg/kWh | O45: mg/kWh | P45: mg/kWh | Q45: mg/kWh | R45: #/kWh | W45: kWh
A46: 1
A47: 2
A48: Global | W48: 123

Sheet PEMS results
A1: Robustness:
A2: Heavy Warm
A3: Emission Results Synthese
A4: Emission Results (Excluding Cold Start) | B4: CO2 (g/km) | C4: CO (mg/km) | D4: NOx (mg/km) | E4: PN (#/km) | F4: THC (mg/km) | G4: FC (l/100km) | H4: EC (kWh/100km) | I4: CO2 (g/kWh) | J4: CO (mg/kWh) | K4: NOx (mg/kWh) | L4: PN (#/kWh) | M4: THC (mg/kWh)
A5: URBAN
A6: RURAL
A7: MOTORWAY
A8: OVERAL
A9: Emission Results (Including Cold Start) | B9: CO2 (g/km) | C9: CO (mg/km) | D9: NOx (mg/km) | E9: PN (#/km) | F9: THC (mg/km) | G9: FC (l/100km) | H9: EC (kWh/100km) | I9: CO2 (g/kWh) | J9: CO (mg/kWh) | K9: NOx (mg/kWh) | L9: PN (#/kWh) | M9: THC (mg/kWh)
A10: URBAN
A11: RURAL
A12: MOTORWAY
A13: OVERALL
A15: PEMS+
A16: Regular cold
A17: Emission Results Synthese
A18: Emission Results (Excluding Cold Start) | B18: CO2 (g/km) | C18: CO (mg/km) | D18: NOx (mg/km) | E18: PN (#/km) | F18: THC (mg/km) | G18: FC (l/100km) | H18: EC (kWh/100km) | I18: CO2 (g/kWh) | J18: CO (mg/kWh) | K18: NOx (mg/kWh) | L18: PN (#/kWh) | M18: THC (mg/kWh)
A19: URBAN
A20: RURAL
A21: MOTORWAY
A22: OVERAL
A23: Emission Results (Including Cold Start) | B23: CO2 (g/km) | C23: CO (mg/km) | D23: NOx (mg/km) | E23: PN (#/km) | F23: THC (mg/km) | G23: FC (l/100km) | H23: EC (kWh/100km) | I23: CO2 (g/kWh) | J23: CO (mg/kWh) | K23: NOx (mg/kWh) | L23: PN (#/kWh) | M23: THC (mg/kWh)
A24: URBAN
A25: RURAL
A26: MOTORWAY
A27: OVERALL
